[Event "Delancey UK Schools 2019 U14"]
[Site "Daventry"]
[Date "2019.09.24"]
[Round "3.2"]
[White "Cox, Toby"]
[Black "Balaji, Aaravamudhan"]
[Result "0-1"]
[ECO "B07"]
[WhiteElo "1616"]
[BlackElo "2086"]
[Annotator "NA"]
[PlyCount "36"]
[EventDate "2019.09.24"]
[EventCountry "GBR"]
[SourceTitle "playchess.com"]
[Source "ChessBase"]
[SourceQuality "1"]
[TimeControl "40/5400+30:1800+30"]

1. e4 {[%emt 1:10:12]} g6 {[%emt 1:10:10]} 2. d4 {[%emt 0:00:24]} Bg7 {[%emt 0:00:21]} 3. Nc3 {[%emt 0:00:34]} d6 {[%emt 0:00:21]} 4. Be3 {[%emt 0:00:21]} Nf6 {[%emt 0:00:45]} 5. Qd2 {[%emt 0:00:21]} c6 {[%emt 0:00:49]} 6. O-O-O {[%emt 0:00:25]} b5 {[%emt 0:00:21]} 7. Bd3 {[%emt 0:00:48]} b4 {[%emt 0:00:43]} 8. Nce2 {[%emt 0:00:23]} a5 {[%emt 0:00:24]} 9. Bh6 {[%emt 0:01:39]} Bxh6 {[%emt 0:01:00]} 10. Qxh6 {[%emt 0:00:23]} Qc7 {[%emt 0:00:54]} 11. h3 {[%emt 0:01:09]} Ba6 {[%emt 0:00:59]} 12. e5 {[%emt 0:04:29]} dxe5 {[%emt 0:02:04]} 13. dxe5 {[%emt 0:00:44]} Qxe5 {[%emt 0:01:21]} 14. Nf3 {[%emt 0:02:55]} Qc5 {[%emt 0:04:57]} 15. Nf4 {[%emt 0:03:08]} a4 {[%emt 0:02:07]} 16. Kb1 {[%emt 0:01:16]} b3 {[%emt 0:01:47]} 17. cxb3 {[%emt 0:03:09]} axb3 {[%emt 0:00:42]} 18. a3 {[%emt 0:00:43]} Bxd3+ {[%emt 0:00:28]} 0-1

[Event "Delancey UK Schools 2019 U14"]
[Site "Daventry"]
[Date "2019.09.24"]
[Round "3.3"]
[White "Akeya-Price, Robert"]
[Black "Hosdurga, Chirag"]
[Result "0-1"]
[ECO "E67"]
[WhiteElo "1892"]
[BlackElo "1786"]
[Annotator "NA"]
[PlyCount "56"]
[EventDate "2019.09.24"]
[EventCountry "GBR"]
[SourceTitle "playchess.com"]
[Source "ChessBase"]
[SourceQuality "1"]
[TimeControl "40/5400+30:1800+30"]

1. d4 {[%emt 1:10:13]} Nf6 {[%emt 1:10:11]} 2. c4 {[%emt 0:00:23]} g6 {[%emt 0:00:21]} 3. Nc3 {[%emt 0:00:25]} Bg7 {[%emt 0:00:21]} 4. Nf3 {[%emt 0:00:29]} O-O {[%emt 0:00:22]} 5. g3 {[%emt 0:00:24]} d6 {[%emt 0:00:21]} 6. Bg2 {[%emt 0:00:23]} Nbd7 {[%emt 0:00:22]} 7. O-O {[%emt 0:00:27]} e5 {[%emt 0:00:21]} 8. dxe5 dxe5 {[%emt 0:00:23]} 9. Qc2 {[%emt 0:01:44]} c6 {[%emt 0:00:24]} 10. b3 {[%emt 0:01:02]} Re8 {[%emt 0:00:51]} 11. Bb2 {[%emt 0:00:39]} Nc5 {[%emt 0:01:39]} 12. Rad1 {[%emt 0:00:52]} Qc7 {[%emt 0:00:55]} 13. b4 {[%emt 0:00:57]} Bf5 {[%emt 0:02:15]} 14. Qc1 {[%emt 0:00:29]} Ncd7 {[%emt 0:00:44]} 15. Nd2 {[%emt 0:01:39]} e4 {[%emt 0:02:49]} 16. Nb3 {[%emt 0:01:05]} Nb6 {[%emt 0:02:51]} 17. Nb1 {[%emt 0:02:48]} e3 {[%emt 0:01:40]} 18. fxe3 {[%emt 0:00:40]} Bh6 {[%emt 0:00:43]} 19. Qc3 {[%emt 0:01:45]} Bg5 {[%emt 0:02:34]} 20. Nc5 {[%emt 0:04:53]} Rxe3 {[%emt 0:03:59]} 21. Qd4 {[%emt 0:02:00]} Rxe2 {[%emt 0:00:59]} 22. Kh1 {[%emt 0:00:33]} Rxb2 {[%emt 0:00:54]} 23. Qxb2 {[%emt 0:01:13]} Nxc4 {[%emt 0:00:29]} 24. Qd4 {[%emt 0:00:48]} Ne3 {[%emt 0:00:58]} 25. Rfe1 {[%emt 0:05:53]} Nfg4 {[%emt 0:01:08]} 26. Qd6 {[%emt 0:00:35]} Qb6 {[%emt 0:02:02]} 27. Rd4 {[%emt 0:00:34]} Rd8 {[%emt 0:00:48]} 28. Nd7 {[%emt 0:00:53]} Rxd7 {[%emt 0:00:58]} 0-1

[Event "Delancey UK Schools 2019 U14"]
[Site "Daventry"]
[Date "2019.09.24"]
[Round "3.4"]
[White "Weersing, Abigail Riis"]
[Black "Sheikh, Samia Zannat"]
[Result "0-1"]
[ECO "E90"]
[WhiteElo "1734"]
[BlackElo "1512"]
[Annotator "NA"]
[PlyCount "68"]
[EventDate "2019.09.24"]
[EventCountry "GBR"]
[SourceTitle "playchess.com"]
[Source "ChessBase"]
[SourceQuality "1"]
[TimeControl "40/5400+30:1800+30"]

1. d4 {[%emt 1:10:11]} c5 {[%emt 1:10:11]} 2. d5 {[%emt 0:00:06]} d6 3. c4 {[%emt 0:00:43]} g6 {[%emt 0:00:45]} 4. Nc3 {[%emt 0:00:27]} Nf6 {[%emt 0:00:21]} 5. e4 {[%emt 0:00:39]} Bg7 {[%emt 0:00:22]} 6. Nf3 {[%emt 0:00:27]} Nbd7 {[%emt 0:00:41]} 7. Bd3 {[%emt 0:00:35]} O-O {[%emt 0:00:24]} 8. O-O {[%emt 0:00:22]} a6 {[%emt 0:00:32]} 9. Bg5 {[%emt 0:01:03]} Ng4 {[%emt 0:00:52]} 10. Qe2 {[%emt 0:02:49]} Nde5 {[%emt 0:01:30]} 11. Nxe5 {[%emt 0:01:27]} Nxe5 {[%emt 0:00:04]} 12. Bc2 {[%emt 0:00:50]} Rb8 {[%emt 0:01:42]} 13. a4 {[%emt 0:01:13]} Qc7 {[%emt 0:01:33]} 14. Bf4 {[%emt 0:01:18]} Bg4 {[%emt 0:01:18]} 15. f3 {[%emt 0:02:40]} Bd7 {[%emt 0:00:32]} 16. Kh1 {[%emt 0:00:57]} h5 {[%emt 0:00:51]} 17. Rae1 {[%emt 0:01:34]} Qa5 {[%emt 0:02:16]} 18. Bxe5 {[%emt 0:01:34]} Bxe5 {[%emt 0:00:24]} 19. Qe3 {[%emt 0:00:39]} Bd4 {[%emt 0:01:20]} 20. Qd3 {[%emt 0:01:17]} b5 {[%emt 0:00:55]} 21. axb5 {[%emt 0:01:13]} axb5 {[%emt 0:00:29]} 22. Ra1 {[%emt 0:01:41]} Qb4 {[%emt 0:01:04]} 23. cxb5 {[%emt 0:02:16]} Qxb2 {[%emt 0:01:31]} 24. Ra7 {[%emt 0:03:41]} Be8 {[%emt 0:01:30]} 25. Na4 {[%emt 0:01:47]} Qxb5 {[%emt 0:00:50]} 26. Rb1 {[%emt 0:01:19]} Qxd3 {[%emt 0:00:30]} 27. Bxd3 {[%emt 0:00:21]} Rxb1+ {[%emt 0:00:32]} 28. Bxb1 {[%emt 0:00:21]} Bxa4 {[%emt 0:00:39]} 29. Rxa4 {[%emt 0:00:21]} Rb8 {[%emt 0:00:24]} 30. Bd3 {[%emt 0:00:48]} Rb3 {[%emt 0:00:25]} 31. Bc2 {[%emt 0:00:23]} Re3 {[%emt 0:00:46]} 32. h3 {[%emt 0:00:41]} Re1+ {[%emt 0:00:30]} 33. Kh2 {[%emt 0:00:22]} Be5+ {[%emt 0:00:14]} 34. g3 Re2+ {[%emt 0:00:07]} 0-1

[Event "Delancey UK Schools 2019 U14"]
[Site "Daventry"]
[Date "2019.09.24"]
[Round "3.5"]
[White "Saidmurodov, Shahjahon"]
[Black "Ismail, Mohammed Aayan"]
[Result "1/2-1/2"]
[ECO "C00"]
[WhiteElo "1782"]
[BlackElo "1583"]
[Annotator "NA"]
[PlyCount "135"]
[EventDate "2019.09.24"]
[EventCountry "GBR"]
[SourceTitle "playchess.com"]
[Source "ChessBase"]
[SourceQuality "1"]
[TimeControl "40/5400+30:1800+30"]

1. e4 {[%emt 1:10:11]} e6 {[%emt 1:10:14]} 2. Nc3 {[%emt 0:00:22]} Bb4 {[%emt 0:00:26]} 3. a3 {[%emt 0:00:28]} Bxc3 {[%emt 0:00:26]} 4. bxc3 {[%emt 0:00:31]} Nf6 {[%emt 0:00:45]} 5. e5 {[%emt 0:00:28]} Nd5 {[%emt 0:00:28]} 6. Qg4 {[%emt 0:01:10]} O-O {[%emt 0:01:46]} 7. d4 {[%emt 0:01:12]} f5 {[%emt 0:01:17]} 8. Qh3 {[%emt 0:00:30]} c5 {[%emt 0:01:01]} 9. c4 {[%emt 0:01:28]} Nc7 {[%emt 0:00:40]} 10. d5 {[%emt 0:00:32]} exd5 {[%emt 0:01:41]} 11. cxd5 {[%emt 0:00:22]} d6 {[%emt 0:00:29]} 12. Nf3 {[%emt 0:02:33]} dxe5 {[%emt 0:01:07]} 13. Bb2 {[%emt 0:02:33]} Qxd5 {[%emt 0:06:19]} 14. Nd2 {[%emt 0:05:38]} Kh8 {[%emt 0:01:02]} 15. O-O-O {[%emt 0:00:42]} Qe6 {[%emt 0:05:19]} 16. Bc4 {[%emt 0:01:00]} Qg6 {[%emt 0:01:38]} 17. Bxe5 {[%emt 0:01:42]} Nba6 {[%emt 0:01:34]} 18. g4 {[%emt 0:02:25]} fxg4 {[%emt 0:01:12]} 19. Qg3 {[%emt 0:00:29]} Bf5 {[%emt 0:00:48]} 20. Bxc7 {[%emt 0:00:47]} Nxc7 {[%emt 0:00:33]} 21. Qxc7 {[%emt 0:00:22]} Bxc2 {[%emt 0:00:30]} 22. Rde1 {[%emt 0:00:39]} Rac8 {[%emt 0:00:59]} 23. Qe5 {[%emt 0:00:49]} Rxf2 {[%emt 0:00:40]} 24. Rhf1 {[%emt 0:02:58]} Rxf1 {[%emt 0:00:25]} 25. Rxf1 {[%emt 0:00:20]} Ba4 {[%emt 0:00:30]} 26. Qf5 {[%emt 0:01:21]} Qxf5 {[%emt 0:00:44]} 27. Rxf5 {[%emt 0:00:23]} h6 {[%emt 0:00:36]} 28. Rf4 {[%emt 0:00:23]} b5 {[%emt 0:00:23]} 29. Be6 {[%emt 0:00:54]} Rd8 {[%emt 0:00:29]} 30. Bxg4 {[%emt 0:00:24]} c4 {[%emt 0:00:23]} 31. Rf3 {[%emt 0:00:38]} a5 {[%emt 0:00:24]} 32. Bf5 {[%emt 0:00:26]} Re8 {[%emt 0:00:54]} 33. Bc2 {[%emt 0:00:57]} Bxc2 {[%emt 0:00:22]} 34. Kxc2 {[%emt 0:00:21]} Re5 {[%emt 0:00:22]} 35. h3 {[%emt 0:00:34]} Kh7 {[%emt 0:00:25]} 36. a4 {[%emt 0:00:33]} bxa4 {[%emt 0:00:40]} 37. Nxc4 {[%emt 0:00:40]} Rc5 {[%emt 0:00:22]} 38. Rc3 {[%emt 0:00:02]} g5 {[%emt 0:00:08]} 39. Kd3 {[%emt 0:01:10]} h5 {[%emt 0:00:55]} 40. Kd4 {[%emt 0:00:31]} Rc6 {[%emt 0:00:34]} 41. Rg3 {[%emt 0:30:26]} Kh6 {[%emt 0:30:37]} 42. Nxa5 {[%emt 0:00:36]} Ra6 {[%emt 0:00:24]} 43. Nc4 {[%emt 0:00:28]} h4 {[%emt 0:00:27]} 44. Ra3 {[%emt 0:00:32]} Kh5 {[%emt 0:00:24]} 45. Ne3 {[%emt 0:00:22]} Ra5 {[%emt 0:00:37]} 46. Ke4 {[%emt 0:00:25]} Ra8 {[%emt 0:00:42]} 47. Kf3 {[%emt 0:00:29]} Rf8+ {[%emt 0:00:22]} 48. Kg2 {[%emt 0:00:25]} Rf4 {[%emt 0:00:22]} 49. Nd5 {[%emt 0:00:36]} Rf5 {[%emt 0:00:33]} 50. Ne3 {[%emt 0:00:34]} Rf4 {[%emt 0:00:23]} 51. Rc3 {[%emt 0:00:35]} Rf6 {[%emt 0:00:46]} 52. Ra3 {[%emt 0:00:30]} Rf4 {[%emt 0:00:22]} 53. Ng4 {[%emt 0:00:46]} Rb4 {[%emt 0:00:34]} 54. Nf6+ {[%emt 0:00:37]} Kg6 {[%emt 0:00:23]} 55. Nd5 {[%emt 0:00:22]} Rd4 {[%emt 0:00:24]} 56. Ne3 {[%emt 0:00:22]} Rb4 {[%emt 0:00:25]} 57. Nd5 {[%emt 0:00:37]} Rd4 {[%emt 0:00:25]} 58. Ne3 {[%emt 0:00:30]} Rb4 {[%emt 0:00:22]} 59. Kf3 {[%emt 0:00:26]} Rf4+ {[%emt 0:00:22]} 60. Ke2 {[%emt 0:00:33]} Rb4 {[%emt 0:00:31]} 61. Kf2 {[%emt 0:00:33]} Rf4+ {[%emt 0:00:24]} 62. Kg2 {[%emt 0:00:25]} Rb4 {[%emt 0:00:22]} 63. Nd1 {[%emt 0:00:25]} g4 {[%emt 0:00:40]} 64. hxg4 {[%emt 0:00:39]} Rxg4+ {[%emt 0:00:24]} 65. Kh3 {[%emt 0:00:28]} Rg3+ {[%emt 0:00:21]} 66. Rxg3+ {[%emt 0:00:25]} hxg3 {[%emt 0:00:22]} 67. Kxg3 {[%emt 0:00:25]} a3 {[%emt 0:00:21]} 68. Nc3 {[%emt 0:00:25]} 1/2-1/2

[Event "Delancey UK Schools 2019 U14"]
[Site "Daventry"]
[Date "2019.09.24"]
[Round "3.6"]
[White "Sheikh, Anum"]
[Black "Woltery, Nicolai"]
[Result "0-1"]
[ECO "B70"]
[WhiteElo "1755"]
[BlackElo "1864"]
[Annotator "NA"]
[PlyCount "34"]
[EventDate "2019.09.24"]
[EventCountry "GBR"]
[SourceTitle "playchess.com"]
[Source "ChessBase"]
[SourceQuality "1"]
[TimeControl "40/5400+30:1800+30"]

1. e4 {[%emt 1:10:11]} c5 {[%emt 1:10:11]} 2. Nf3 {[%emt 0:00:03]} Nc6 3. d4 {[%emt 0:00:48]} cxd4 {[%emt 0:00:52]} 4. Nxd4 {[%emt 0:00:12]} g6 {[%emt 0:00:12]} 5. Nc3 {[%emt 0:00:22]} Bg7 {[%emt 0:00:21]} 6. Nb3 {[%emt 0:00:20]} Nf6 {[%emt 0:00:23]} 7. Be2 {[%emt 0:00:22]} d6 {[%emt 0:00:22]} 8. O-O {[%emt 0:00:24]} O-O {[%emt 0:00:28]} 9. Bg5 {[%emt 0:00:23]} h6 {[%emt 0:00:26]} 10. Be3 {[%emt 0:00:25]} Be6 {[%emt 0:05:05]} 11. f4 {[%emt 0:00:27]} Qd7 {[%emt 0:03:30]} 12. h3 {[%emt 0:00:38]} h5 {[%emt 0:04:00]} 13. Qd2 {[%emt 0:02:18]} Rfd8 {[%emt 0:04:05]} 14. Rad1 {[%emt 0:01:36]} Qc8 {[%emt 0:00:58]} 15. Bf3 {[%emt 0:01:45]} Bc4 {[%emt 0:02:45]} 16. Rfe1 {[%emt 0:00:27]} e6 {[%emt 0:01:27]} 17. Qf2 {[%emt 0:04:01]} d5 {[%emt 0:01:01]} 0-1

[Event "Delancey UK Schools 2019 U14"]
[Site "Daventry"]
[Date "2019.09.24"]
[Round "3.7"]
[White "Wang, Susie"]
[Black "Clarke, Connor"]
[Result "0-1"]
[ECO "B03"]
[WhiteElo "1515"]
[BlackElo "1711"]
[Annotator "NA"]
[PlyCount "88"]
[EventDate "2019.09.24"]
[EventCountry "GBR"]
[SourceTitle "playchess.com"]
[Source "ChessBase"]
[SourceQuality "1"]
[TimeControl "40/5400+30:1800+30"]

1. e4 {[%emt 1:10:12]} Nf6 {[%emt 1:10:13]} 2. e5 {[%emt 0:00:22]} Nd5 {[%emt 0:00:24]} 3. c4 {[%emt 0:00:21]} Nb6 {[%emt 0:00:24]} 4. d4 {[%emt 0:00:21]} d6 {[%emt 0:00:27]} 5. exd6 {[%emt 0:00:03]} exd6 {[%emt 0:00:25]} 6. Nc3 {[%emt 0:00:54]} Nc6 {[%emt 0:00:23]} 7. Be3 {[%emt 0:00:22]} Be7 {[%emt 0:00:41]} 8. Rc1 {[%emt 0:00:38]} O-O {[%emt 0:01:02]} 9. Bd3 {[%emt 0:00:25]} Re8 {[%emt 0:00:54]} 10. b3 {[%emt 0:01:04]} Bg5 {[%emt 0:00:43]} 11. d5 {[%emt 0:08:41]} Ne5 {[%emt 0:03:19]} 12. Nf3 {[%emt 0:10:50]} Ng4 {[%emt 0:01:50]} 13. Nxg5 Qxg5 {[%emt 0:01:01]} 14. O-O {[%emt 0:02:00]} Nxe3 {[%emt 0:00:54]} 15. fxe3 {[%emt 0:00:22]} Rxe3 {[%emt 0:01:05]} 16. Ne4 {[%emt 0:00:44]} Rxe4 17. Bxe4 {[%emt 0:00:28]} Qe3+ {[%emt 0:01:18]} 18. Kh1 {[%emt 0:00:35]} Qxe4 {[%emt 0:00:24]} 19. Re1 {[%emt 0:00:40]} Bg4 {[%emt 0:01:04]} 20. Rxe4 {[%emt 0:00:35]} Bxd1 21. Rxd1 {[%emt 0:00:21]} Kf8 {[%emt 0:01:50]} 22. Rde1 {[%emt 0:00:24]} Nd7 {[%emt 0:01:22]} 23. Re7 {[%emt 0:00:39]} Rd8 {[%emt 0:00:25]} 24. Kg1 {[%emt 0:00:34]} b6 {[%emt 0:00:37]} 25. R7e4 {[%emt 0:00:33]} Ne5 {[%emt 0:00:32]} 26. R1e3 {[%emt 0:00:33]} g6 {[%emt 0:00:59]} 27. h3 {[%emt 0:00:29]} Kg7 {[%emt 0:01:11]} 28. Kf2 {[%emt 0:00:32]} Re8 {[%emt 0:00:33]} 29. Rf4 {[%emt 0:00:32]} a5 {[%emt 0:02:06]} 30. Rd4 {[%emt 0:00:27]} Re7 {[%emt 0:01:09]} 31. Rd1 {[%emt 0:00:28]} f5 {[%emt 0:00:38]} 32. Kg3 {[%emt 0:00:29]} g5 {[%emt 0:00:53]} 33. Kf2 {[%emt 0:00:36]} h5 {[%emt 0:00:31]} 34. a3 {[%emt 0:00:26]} f4 {[%emt 0:01:02]} 35. Ree1 {[%emt 0:00:29]} g4 {[%emt 0:00:54]} 36. hxg4 hxg4 {[%emt 0:00:39]} 37. Re2 {[%emt 0:01:04]} g3+ {[%emt 0:00:31]} 38. Ke1 {[%emt 0:00:32]} Kg6 {[%emt 0:01:08]} 39. Kf1 {[%emt 0:00:30]} Kg5 {[%emt 0:00:34]} 40. Rde1 Rh7 {[%emt 0:00:52]} 41. Re4 {[%emt 0:31:00]} Rh1+ {[%emt 0:30:49]} 42. Ke2 {[%emt 0:00:23]} Rh2 {[%emt 0:00:25]} 43. Kf1 {[%emt 0:00:38]} Kf5 {[%emt 0:00:40]} 44. Rd1 Kxe4 {[%emt 0:00:34]} 0-1

[Event "Delancey UK Schools 2019 U14"]
[Site "Daventry"]
[Date "2019.09.24"]
[Round "3.10"]
[White "Dicen, Imogen"]
[Black "Saunders, Aron"]
[Result "0-1"]
[ECO "A45"]
[WhiteElo "1509"]
[BlackElo "1428"]
[Annotator "NA"]
[PlyCount "52"]
[EventDate "2019.09.24"]
[EventCountry "GBR"]
[SourceTitle "playchess.com"]
[Source "ChessBase"]
[SourceQuality "1"]
[TimeControl "40/5400+30:1800+30"]

1. d4 {[%emt 1:10:12]} Nf6 {[%emt 1:10:11]} 2. Bg5 {[%emt 0:00:26]} g6 {[%emt 0:00:30]} 3. Bxf6 {[%emt 0:00:32]} exf6 {[%emt 0:00:22]} 4. Nf3 {[%emt 0:00:24]} Bg7 {[%emt 0:00:22]} 5. e4 {[%emt 0:00:25]} O-O {[%emt 0:01:19]} 6. Bc4 {[%emt 0:00:24]} c5 {[%emt 0:00:34]} 7. c3 {[%emt 0:00:34]} Re8 {[%emt 0:00:42]} 8. Nbd2 {[%emt 0:00:37]} d5 {[%emt 0:00:53]} 9. Bb5 {[%emt 0:01:04]} Nc6 {[%emt 0:00:46]} 10. O-O {[%emt 0:01:07]} dxe4 {[%emt 0:00:51]} 11. Ne1 {[%emt 0:00:44]} cxd4 {[%emt 0:00:29]} 12. cxd4 {[%emt 0:00:42]} Qxd4 {[%emt 0:00:35]} 13. Rb1 {[%emt 0:01:25]} a6 {[%emt 0:01:03]} 14. Nc2 {[%emt 0:02:31]} Qd8 {[%emt 0:01:01]} 15. Be2 {[%emt 0:01:23]} Nd4 {[%emt 0:01:17]} 16. Nc4 {[%emt 0:02:00]} Nxe2+ {[%emt 0:01:20]} 17. Qxe2 {[%emt 0:00:26]} b5 {[%emt 0:01:44]} 18. Rfd1 {[%emt 0:01:12]} Qc7 {[%emt 0:01:38]} 19. Nd6 {[%emt 0:01:52]} Re6 {[%emt 0:00:47]} 20. Nxc8 {[%emt 0:00:38]} Rxc8 {[%emt 0:00:24]} 21. Nd4 {[%emt 0:00:34]} Ree8 {[%emt 0:01:11]} 22. Qe3 {[%emt 0:00:54]} f5 {[%emt 0:02:06]} 23. Ne2 {[%emt 0:01:01]} Red8 {[%emt 0:01:47]} 24. Rdc1 {[%emt 0:01:11]} Qa5 {[%emt 0:00:40]} 25. Qb3 {[%emt 0:03:33]} Rxc1+ 26. Nxc1 {[%emt 0:01:03]} Qe1# 0-1

[Event "Delancey UK Schools 2019 U14"]
[Site "Daventry"]
[Date "2019.09.24"]
[Round "3.11"]
[White "Britnell, Jonathan"]
[Black "Yoon, Jacob D"]
[Result "0-1"]
[ECO "C11"]
[WhiteElo "1650"]
[BlackElo "2086"]
[Annotator "NA"]
[PlyCount "54"]
[EventDate "2019.09.24"]
[EventCountry "GBR"]
[SourceTitle "playchess.com"]
[Source "ChessBase"]
[SourceQuality "1"]
[TimeControl "40/5400+30:1800+30"]

1. e4 {[%emt 1:11:11]} e6 {[%emt 1:10:10]} 2. Nf3 {[%emt 0:01:16]} d5 {[%emt 0:00:21]} 3. Nc3 {[%emt 0:00:21]} Nf6 {[%emt 0:01:07]} 4. e5 {[%emt 0:00:21]} Nfd7 {[%emt 0:00:22]} 5. d4 {[%emt 0:00:21]} c5 {[%emt 0:00:31]} 6. dxc5 {[%emt 0:00:22]} Nc6 {[%emt 0:00:50]} 7. Bf4 {[%emt 0:00:22]} Bxc5 {[%emt 0:00:36]} 8. Bd3 {[%emt 0:00:23]} f6 {[%emt 0:02:37]} 9. Qe2 {[%emt 0:00:35]} fxe5 {[%emt 0:01:07]} 10. Nxe5 {[%emt 0:01:16]} Ndxe5 {[%emt 0:00:27]} 11. Bxe5 {[%emt 0:00:22]} Nxe5 {[%emt 0:00:32]} 12. Qxe5 {[%emt 0:00:23]} O-O {[%emt 0:00:29]} 13. O-O-O {[%emt 0:04:32]} Qf6 {[%emt 0:03:17]} 14. Qxf6 {[%emt 0:01:06]} Rxf6 {[%emt 0:00:29]} 15. f3 {[%emt 0:00:23]} Bd7 {[%emt 0:00:40]} 16. Rhe1 {[%emt 0:00:27]} Bb4 {[%emt 0:01:15]} 17. Re5 {[%emt 0:01:19]} Bd6 {[%emt 0:01:14]} 18. Rh5 {[%emt 0:01:36]} g6 {[%emt 0:00:30]} 19. Rh4 {[%emt 0:01:12]} Rc8 {[%emt 0:01:14]} 20. Kb1 {[%emt 0:00:52]} a6 {[%emt 0:01:02]} 21. Ne2 {[%emt 0:02:41]} b5 {[%emt 0:00:54]} 22. a4 {[%emt 0:02:22]} bxa4 {[%emt 0:03:02]} 23. c4 {[%emt 0:02:48]} Rb8 {[%emt 0:03:04]} 24. cxd5 {[%emt 0:01:32]} a3 {[%emt 0:01:25]} 25. Rd2 {[%emt 0:00:55]} exd5 {[%emt 0:01:26]} 26. Bxa6 {[%emt 0:02:01]} Be5 {[%emt 0:02:13]} 27. b4 {[%emt 0:01:02]} Rxa6 {[%emt 0:00:34]} 0-1

[Event "Delancey UK Schools 2019 U14"]
[Site "Daventry"]
[Date "2019.09.24"]
[Round "3.12"]
[White "Korsinskij, Nikolas"]
[Black "Anika Rachna Roy"]
[Result "1-0"]
[ECO "C45"]
[WhiteElo "1502"]
[BlackElo "1392"]
[Annotator "NA"]
[PlyCount "40"]
[EventDate "2019.09.24"]
[EventCountry "GBR"]
[SourceTitle "playchess.com"]
[Source "ChessBase"]
[SourceQuality "1"]
[TimeControl "40/5400+30:1800+30"]

1. e4 {[%emt 1:10:13]} e5 {[%emt 1:10:11]} 2. Nf3 {[%emt 0:00:25]} Nc6 {[%emt 0:00:22]} 3. Nc3 {[%emt 0:00:24]} Nf6 {[%emt 0:00:25]} 4. d4 {[%emt 0:00:23]} exd4 {[%emt 0:00:23]} 5. Nxd4 {[%emt 0:00:25]} Nxd4 {[%emt 0:00:41]} 6. Qxd4 {[%emt 0:00:25]} d6 {[%emt 0:00:47]} 7. Be3 {[%emt 0:03:14]} Be7 {[%emt 0:01:18]} 8. O-O-O {[%emt 0:00:51]} O-O {[%emt 0:03:02]} 9. f3 {[%emt 0:01:21]} Be6 {[%emt 0:02:06]} 10. g4 {[%emt 0:01:58]} Nd7 {[%emt 0:00:20]} 11. Nd5 {[%emt 0:01:48]} Ne5 {[%emt 0:02:56]} 12. Nxe7+ Qxe7 {[%emt 0:00:27]} 13. Be2 {[%emt 0:02:58]} a5 {[%emt 0:03:22]} 14. a3 {[%emt 0:02:40]} Rfb8 {[%emt 0:01:35]} 15. h4 {[%emt 0:00:37]} b5 {[%emt 0:00:59]} 16. h5 {[%emt 0:00:43]} b4 {[%emt 0:02:24]} 17. a4 {[%emt 0:00:43]} Rd8 {[%emt 0:01:15]} 18. b3 {[%emt 0:01:48]} c5 {[%emt 0:01:05]} 19. Qd2 {[%emt 0:02:23]} Nc6 {[%emt 0:02:37]} 20. g5 {[%emt 0:01:36]} f5 {[%emt 0:01:58]} 1-0

[Event "Delancey UK Schools 2019 U14"]
[Site "Daventry"]
[Date "2019.09.24"]
[Round "3.13"]
[White "Headlong, Georgia"]
[Black "Jayanthi, Harshita"]
[Result "1-0"]
[ECO "B01"]
[WhiteElo "1464"]
[BlackElo "1217"]
[Annotator "NA"]
[PlyCount "99"]
[EventDate "2019.09.24"]
[EventCountry "GBR"]
[SourceTitle "playchess.com"]
[Source "ChessBase"]
[SourceQuality "1"]
[TimeControl "40/5400+30:1800+30"]

1. e4 {[%emt 1:10:13]} d5 {[%emt 1:10:13]} 2. exd5 {[%emt 0:00:22]} Qxd5 {[%emt 0:00:21]} 3. Nc3 {[%emt 0:00:22]} Qa5 {[%emt 0:00:24]} 4. d4 {[%emt 0:00:24]} Nf6 {[%emt 0:00:42]} 5. Nf3 {[%emt 0:00:41]} Bg4 {[%emt 0:00:38]} 6. Be2 {[%emt 0:00:41]} c6 {[%emt 0:01:00]} 7. O-O {[%emt 0:00:30]} Nbd7 {[%emt 0:01:00]} 8. Bf4 {[%emt 0:00:53]} e6 {[%emt 0:01:37]} 9. Ne5 {[%emt 0:01:38]} Bxe2 {[%emt 0:01:31]} 10. Qxe2 {[%emt 0:00:58]} Nxe5 {[%emt 0:01:46]} 11. Qxe5 {[%emt 0:01:00]} Qxe5 {[%emt 0:00:37]} 12. dxe5 {[%emt 0:00:53]} Nd5 {[%emt 0:00:24]} 13. Nxd5 {[%emt 0:00:36]} cxd5 {[%emt 0:00:24]} 14. Be3 {[%emt 0:00:44]} b6 {[%emt 0:00:44]} 15. a4 {[%emt 0:00:59]} Rd8 {[%emt 0:01:18]} 16. a5 {[%emt 0:02:06]} d4 {[%emt 0:01:08]} 17. Bg5 {[%emt 0:01:14]} Be7 {[%emt 0:01:50]} 18. Bxe7 {[%emt 0:00:26]} Kxe7 {[%emt 0:00:23]} 19. axb6 {[%emt 0:00:29]} axb6 {[%emt 0:00:24]} 20. Ra7+ {[%emt 0:00:30]} Rd7 {[%emt 0:00:26]} 21. Rxd7+ {[%emt 0:00:32]} Kxd7 {[%emt 0:00:31]} 22. Rd1 {[%emt 0:00:32]} Ra8 {[%emt 0:00:56]} 23. Rxd4+ {[%emt 0:00:28]} Ke7 {[%emt 0:00:31]} 24. Kf1 {[%emt 0:00:43]} Ra5 {[%emt 0:01:52]} 25. f4 {[%emt 0:01:17]} Rd5 {[%emt 0:00:26]} 26. Rxd5 {[%emt 0:00:35]} exd5 {[%emt 0:00:23]} 27. Ke2 {[%emt 0:00:22]} Ke6 {[%emt 0:00:29]} 28. Kd3 {[%emt 0:00:31]} Kd7 {[%emt 0:00:27]} 29. Kd4 {[%emt 0:00:23]} Kc6 {[%emt 0:00:56]} 30. f5 {[%emt 0:00:36]} f6 {[%emt 0:01:13]} 31. e6 {[%emt 0:00:24]} Kd6 {[%emt 0:00:24]} 32. g4 {[%emt 0:00:39]} g5 {[%emt 0:01:14]} 33. b3 {[%emt 0:00:41]} b5 {[%emt 0:01:05]} 34. b4 {[%emt 0:00:27]} h6 {[%emt 0:00:46]} 35. h3 {[%emt 0:00:26]} Kc6 {[%emt 0:00:47]} 36. e7 {[%emt 0:00:29]} Kd7 {[%emt 0:00:37]} 37. Kxd5 {[%emt 0:00:26]} Kxe7 {[%emt 0:00:21]} 38. Kc5 {[%emt 0:00:21]} Kd7 {[%emt 0:00:27]} 39. Kxb5 {[%emt 0:00:22]} Kd6 {[%emt 0:00:21]} 40. c4 {[%emt 0:00:22]} Ke5 {[%emt 0:00:21]} 41. c5 {[%emt 0:30:21]} Kf4 {[%emt 0:30:21]} 42. c6 {[%emt 0:00:21]} Kg3 {[%emt 0:00:21]} 43. c7 {[%emt 0:00:22]} Kxh3 {[%emt 0:00:22]} 44. c8=Q {[%emt 0:00:23]} h5 45. gxh5 {[%emt 0:00:23]} g4 {[%emt 0:00:50]} 46. Qc3+ {[%emt 0:00:22]} Kh4 {[%emt 0:00:23]} 47. h6 {[%emt 0:00:24]} g3 {[%emt 0:00:23]} 48. Qe1 {[%emt 0:00:33]} Kh5 {[%emt 0:00:33]} 49. Qxg3 {[%emt 0:00:28]} Kxh6 {[%emt 0:00:32]} 50. Qg6# 1-0